Cogmind - Beta 16 --- EXPLORER MODE // 2025.12.15 @ 16:15:44 Player: K.K.Y. Result: Destroyed by DT-EGV(R) with Subdweller Machine Gun Performance ------------- Evolutions (0) 0 Regions Visited (3) 600 Robots Destroyed (44) 220 Value Destroyed (857) 857 Prototype IDs (12) 240 Alien Tech Used (0) 0 Bonus (-129) -129 TOTAL SCORE: 1788 Bonus ------- Follower Combat Kills 7 Friendly Fire -136 Cogmind --------- Core Integrity 0/250 Matter 284/300 Energy 265/265 System Corruption 0% Temperature Cool (0) Movement Walking (90) Location -10/Subcaves Parts ------- > --- POWER (1) -------- Improved Ion Engine > --- PROPULSION (3+3) - Arachnoskeleton > --- UTILITY (2) ------ Structural Scanner Improved Terrain Scanner > --- WEAPON (2) ------- Barrage Gun Barrage Gun > --- INVENTORY (5) ---- Huge Storage Unit Riot Gun Barrage Gun Battle Cannon Makeshift Sword Peak State ------------ > --- POWER ------------ Subdweller Power Source > --- PROPULSION ------- Arachnoskeleton > --- UTILITY ---------- Structural Scanner Improved Terrain Scanner > --- WEAPON ----------- Barrage Gun Barrage Gun > --- INVENTORY -------- Huge Storage Unit Riot Gun Barrage Gun Battle Cannon Makeshift Sword [Rating: 34] Favorites ----------- Power Ion Engine Engine Ion Engine Propulsion Flight Unit Leg Arachnoskeleton Wheel Wheel Flight Unit Flight Unit Utility Structural Scanner Device Structural Scanner Processor Targeting Computer Weapon Barrage Gun Energy Gun EM Shotgun Ballistic Gun Barrage Gun Special Weapon Mining Laser Build | -11 -10 -10 -10 ------- Run | Yrd Mat Min Sub Slots Evolved 1 | . 1 . . Power . | . . . . Propulsion 1 | . 1 . . Utility . | . . . . Weapon . | . . . . Parts Attached 30 | 7 7 3 13 Power 4 | 1 . 1 2 Engine 4 | 1 . 1 2 Core . | . . . . Reactor . | . . . . Propulsion 13 | 3 3 2 5 Treads . | . . . . Leg 1 | . . . 1 Wheel 3 | 3 . . . Hover . | . . . . Flight 9 | . 3 2 4 Utility 4 | 1 2 . 1 Device 3 | . 2 . 1 Storage . | . . . . Processor 1 | 1 . . . Hackware . | . . . . Protection . | . . . . Artifact . | . . . . Weapon 9 | 2 2 . 5 Energy Gun 2 | . 1 . 1 Energy Cannon . | . . . . Ballistic Gun 6 | 2 1 . 3 Ballistic Cannon . | . . . . Launcher . | . . . . Special Weapon 1 | . . . 1 Impact Weapon . | . . . . Slashing Weapon . | . . . . Piercing Weapon . | . . . . Special Melee Weapon . | . . . . Unidentified Prototypes . | . . . . Parts Lost 9 | . . . 9 Power 1 | . . . 1 Propulsion 3 | . . . 3 Utility 1 | . . . 1 Weapon 4 | . . . 4 Highest Loss Streak 4 | . . . 4 To Critical Strikes . | . . . . Average Backups 4 | 1 3 5 4 Power . | . . . . Propulsion . | . . . . Utility 1 | 1 1 2 1 Weapon 2 | . 2 3 3 Tool/Special . | . . . . Unused Backups 6 | . 1 . 5 Power . | . . . . Propulsion . | . . . . Utility 2 | . 1 . 1 Weapon 4 | . . . 4 Tool/Special . | . . . . Average Slot Usage (%) 67 | . 86 100 60 Engine 8 | . 12 12 7 Leg 4 | . . . 6 Flight 12 | . 29 37 7 Device 19 | . 12 25 19 Energy Gun 3 | . 8 12 1 Ballistic Gun 16 | . 15 12 17 Peak Build Rating 34 | 6 11 11 34 Average Rating 20 | 3 9 11 25 On Entrance 7 | . 6 11 11 Avg Prop Armor Cover (%) . | . . . . Naked Turns . | . . . . Heaviest Build 15 | 6 10 12 15 Greatest Support 50 | 20 20 18 50 Greatest Overweight (x) 3 | . 1 . 3 Average Overweight (x) . | . . . . Largest Inventory Capacity 5 | 5 5 5 5 Average Capacity 5 | 5 5 5 5 Most Carried 5 | 5 5 5 5 Average Carried 4 | 1 3 5 4 Final Capacity 5 | 5 5 5 5 Final Carried 5 | 2 5 5 5 Class Distribution -------------------- 100% | Hacker-Mutant Dominant Class ---------------- Hacker-Mutant | -10/Materials Hacker-Mutant | -10/Mines Hacker-Mutant | -10/Subcaves Resources | -11 -10 -10 -10 ----------- Run | Yrd Mat Min Sub Matter Collected 1117 | 366 138 54 559 Remotely . | . . . . Salvage Created 1339 | 229 310 161 639 Parts 84 | 14 19 11 40 Haulers Intercepted 2 | . 2 . . Recyclers Shooed 1 | . . 1 . Parts Field Recycled . | . . . . Retrieved Matter . | . . . . Parts Self-Destructed . | . . . . Prevented . | . . . . Parts Restored . | . . . . Kills | -11 -10 -10 -10 ------- Run | Yrd Mat Min Sub Combat Hostiles Destroyed 24 | . 4 2 18 Guns 23 | . 4 2 17 Cannons 1 | . . . 1 Classes Destroyed 10 | 3 4 . 3 Worker 3 | 2 . 1 . Tunneler 7 | 6 . 1 . Hauler 2 | . 2 . . Recycler 3 | 1 1 1 . Turret 2 | . . . 2 Watcher 2 | . 2 . . Swarmer 9 | . 2 2 5 Grunt 5 | . 2 . 3 Sentry 1 | . . . 1 Subdweller 9 | . . . 9 Thug 1 | . . . 1 Best Kill Streak 6 | 6 3 4 4 Combat Bots Only 4 | . 2 2 4 Max Kills in Single Turn 2 | 1 1 2 1 Gunslinging 1 | . . 1 . Exploded . | . . . . Melee . | . . . . Uniques/NPCs Destroyed . | . . . . Combat | -11 -10 -10 -10 -------- Run | Yrd Mat Min Sub Hostile Shots Fired 154 | . 16 4 134 Missed 60 | . 6 . 54 Hits 94 | . 10 4 80 Projectile 94 | . 10 4 80 Critical Strikes 3 | . . . 3 Damage Taken 901 | . 77 41 783 Core 256 | . 9 12 235 Absorbed by Shields . | . . . . Ignored by Resistances 538 | . 50 28 460 Core Remaining (%) 100 | 100 . . . Volleys Fired 128 | 24 18 5 81 Largest 2 | 2 2 2 2 Hottest 145 | 40 68 68 145 Shots Fired 244 | 48 36 10 150 Gun 231 | 48 36 10 137 Cannon . | . . . . Launcher . | . . . . Special 13 | . . . 13 Kinetic 188 | 48 23 5 112 Thermal 13 | . . . 13 Explosive . | . . . . Electromagnetic 43 | . 13 5 25 Robot Hit Streak 55 | 14 22 10 55 Robot Miss Streak 3 | 1 1 2 3 Penetration Max . | . . . . Secondary Targets 6 | . 2 1 3 Max Gunslinging Chain 1 | . 1 1 1 Shots Hit Robots 162 | 36 32 7 87 Core Hits 80 | 14 17 6 43 Critical Kills 1 | . . . 1 Critical Parts Destroyed 2 | . . . 2 Critical Strikes 3 | . . . 3 Destroy 3 | . . . 3 Melee Attacks . | . . . . Impact . | . . . . Slashing . | . . . . Piercing . | . . . . Sneak Attacks . | . . . . Combat Hostiles . | . . . . Follow-up Attacks . | . . . . Damage Inflicted 2635 | 390 527 160 1558 Guns 2530 | 390 527 127 1486 Cannons . | . . . . Explosions 33 | . . 33 . Melee . | . . . . Ramming . | . . . . Kinetic 1915 | 390 289 55 1181 Thermal 105 | . . 33 72 Explosive . | . . . . Electromagnetic 615 | . 238 72 305 Impact . | . . . . Slashing . | . . . . Piercing . | . . . . Highest Corruption . | . . . . Average Corruption . | . . . . Corruption Purged . | . . . . Corruption Blocked . | . . . . Overload Shots . | . . . . Overflow Damage 4 | . . . 4 Projectiles 4 | . . . 4 Explosions . | . . . . Melee . | . . . . Knockbacks . | . . . . Impact . | . . . . Kinetic . | . . . . Secondary . | . . . . Self-Inflicted Damage 24 | . . 24 . Shots 1 | . . 1 . Rammed . | . . . . Targets Rammed . | . . . . Kicked . | . . . . Crushed . | . . . . Highest Temperature 156 | . 156 30 154 Average Temperature 48 | . 51 14 88 Received Heat Transfer 538 | . 57 . 481 Siege Activations . | . . . . Martial Activations . | . . . . Shielding Activations . | . . . . Robots Disrupted . | . . . . Combat Hostiles . | . . . . Robots Corrupted . | . . . . Combat Hostiles . | . . . . Parts Fried 2 | . 1 . 1 Impact Corruptions . | . . . . Robots Melted . | . . . . Combat Hostiles . | . . . . Parts Melted . | . . . . Heat Transferred 200 | . . 50 150 Parts Sabotaged . | . . . . Parts Stolen . | . . . . Parts Stripped . | . . . . Power Chain Reactions 1 | . . 1 . Alert | -11 -10 -10 -10 ------- Run | Yrd Mat Min Sub Maximum Alert Level . | . . . . Low Security (%) 100 | 100 100 100 . Level 1 . | . . . . Level 2 . | . . . . Level 3 . | . . . . Level 4 . | . . . . Level 5 . | . . . . High Security . | . . . . Max Security . | . . . . Peak Influence 55 | 10 55 54 . Initial 1 | . . 1 . Average 8 | 1 14 7 . Influence Increases 781 | 45 133 69 534 Destroy 0b10 Robot/C 360 | . 80 40 240 Destroy 0b10 Robot/NC 85 | 45 25 15 . Destroy Leader 58 | . 28 10 20 Allied During Kill 4 | . . . 4 Destroy Structure 4 | . . 4 . Lose Combat Pursuer 270 | . . . 270 Influence Decreases 781 | 45 128 74 534 Entered New Map 4 | . . 4 . Time Decay 697 | 45 128 70 454 Lost Part 20 | . . . 20 Lost Ally 60 | . . . 60 Squads Dispatched . | . . . . Investigation . | . . . . Extermination . | . . . . Reinforcement . | . . . . Assault . | . . . . Garrison . | . . . . Intercept . | . . . . Searches Triggered . | . . . . Construction Impeded . | . . . . Haulers Reinforced . | . . . . Active Scanning Responses . | . . . . Cargo Convoy Interrupts . | . . . . Stealth | -11 -10 -10 -10 --------- Run | Yrd Mat Min Sub Distress Signals . | . . . . Communications Jammed . | . . . . Distress Signals . | . . . . Times Spotted 38 | . 7 2 29 Peak Tracking Total 5 | . 2 2 5 Tactical Retreats 4 | . . . 4 Traps | -11 -10 -10 -10 ------- Run | Yrd Mat Min Sub Traps Triggered 3 | . 1 . 2 Indirectly . | . . . . Trap Hack Attempts . | . . . . Triggered . | . . . . Disarmed . | . . . . Reprogrammed . | . . . . Reused . | . . . . Traps Extracted . | . . . . Installed . | . . . . Triggered . | . . . . Machines | -11 -10 -10 -10 ---------- Run | Yrd Mat Min Sub Machines Disabled 1 | . . . 1 Max in Single Turn 1 | . . . 1 Machines Repaired . | . . . . Machines Dismantled . | . . . . Machines Sabotaged . | . . . . Overloaded Fab Kills . | . . . . Hacking | -11 -10 -10 -10 --------- Run | Yrd Mat Min Sub Machines Accessed 2 | . . . 2 Terminals . | . . . . Fabricators . | . . . . Repair Stations . | . . . . Recycling Units . | . . . . Scanalyzers . | . . . . Garrison Access . | . . . . Total Hacks 5 | . . . 5 Successful 5 | . . . 5 Failed . | . . . . Catastrophic . | . . . . Database Lockouts . | . . . . Manual . | . . . . Terminals . | . . . . Fabricators . | . . . . Repair Stations . | . . . . Recycling Units . | . . . . Scanalyzers . | . . . . Garrison Access . | . . . . Terminal Hacks 5 | . . . 5 Record 4 | . . . 4 Proto ID Catalog 1 | . . . 1 Fabricator Hacks . | . . . . Repair Station Hacks . | . . . . Recycling Unit Hacks . | . . . . Scanalyzer . | . . . . Garrison Access Hacks . | . . . . Unauthorized Hacks . | . . . . Terminals . | . . . . Fabricators . | . . . . Repair Stations . | . . . . Recycling Units . | . . . . Scanalyzers . | . . . . Garrison Access . | . . . . Data Cores Recovered . | . . . . Used . | . . . . Hacking Detections . | . . . . Full Trace Events . | . . . . Feedback Events . | . . . . Feedback Blocked . | . . . . Robot Schematics Acquired . | . . . . Robots Built . | . . . . Authchips . | . . . . Time . | . . . . Total Robot Build Rating . | . . . . Part Schematics Acquired . | . . . . Parts Built . | . . . . Authchips . | . . . . Time . | . . . . Total Part Build Rating . | . . . . Part Studies Acquired . | . . . . Parts Repaired . | . . . . Time . | . . . . Parts Recycled . | . . . . Recycled Matter . | . . . . Retrieved Matter . | . . . . Retrieved Components . | . . . . Parts Scanalyzed . | . . . . Part Schematics Acquired . | . . . . Parts Damaged . | . . . . Bothacking | -11 -10 -10 -10 ------------ Run | Yrd Mat Min Sub Used RIF Installer . | . . . . Robots Hacked . | . . . . Non-combat . | . . . . Combat . | . . . . Robot Hacks Applied . | . . . . Relay Couplers Released . | . . . . Fabnet Peak Effective % . | . . . . Robots Rewired . | . . . . Allies Hacked . | . . . . Hacks Repelled . | . . . . Allies | -11 -10 -10 -10 -------- Run | Yrd Mat Min Sub Total Allies 5 | . . 5 . Largest Group 5 | . . 5 5 Highest-Rated Group 81 | . . 81 81 Highest-Rated Ally 31 | . . 31 31 Total Orders . | . . . . Ally Attacks 36 | . . . 36 Total Damage 416 | . . . 416 Kills 2 | . . . 2 Allies Corrupted . | . . . . Allies Melted . | . . . . Intel | -11 -10 -10 -10 ------- Run | Yrd Mat Min Sub Active Infowar (turns) 1160 | . 72 329 759 Terrain 301 | . . . 301 Structural 1160 | . 72 329 759 Robot Analysis Total . | . . . . Derelict Logs Recovered 3 | . . 1 2 Drone Launches . | . . . . Drone Recoveries . | . . . . Exploration | -11 -10 -10 -10 ------------- Run | Yrd Mat Min Sub Turns Passed 2959 | 221 230 329 2179 Spaces Moved 2877 | 119 389 698 1671 Core 209 | 94 3 . 112 Treads . | . . . . Legs 1012 | . . . 1012 Wheels 60 | 25 35 . . Hover . | . . . . Flight 1596 | . 351 698 547 Fastest Speed 34 | 50 34 34 34 Average Speed 64 | 56 38 34 83 Slowest Speed 200 | 80 100 34 200 Overloaded Moves . | . . . . Propulsion Burnouts . | . . . . Robots Hopped 3 | . 1 2 . Potential Cave-ins . | . . . . Cave-ins Triggered . | . . . . Exploration Rate (%) 62 | 5 62 98 85 Regions Visited 3 Branch Regions 2 Pre-discovered Areas 1 | . . . 1 Known Exits Taken 3 | 1 1 1 . Unknown Exits Taken . | . . . . Scrap Searched 5 | . . . 5 Spaces Dug . | . . . . Terrain Destroyed 4 | . . 4 . Melee . | . . . . Projectile . | . . . . AOE 4 | . . 4 . Terrain Rammed . | . . . . Walls Destroyed . | . . . . Machines Disabled . | . . . . Actions | -11 -10 -10 -10 --------- Run | Yrd Mat Min Sub Total 3721 | 229 437 778 2277 Wait 633 | 70 . 72 491 Move 2868 | 118 386 693 1671 Hop 3 | . 1 2 . Pick Up 32 | 9 13 . 10 Fast Attach 2 | . . . 2 Attach 21 | 6 7 . 8 Detach 5 | . 5 . . Swap 11 | 1 . 3 7 Drop 18 | 1 7 3 7 Fire 128 | 24 18 5 81 Melee . | . . . . Ram . | . . . . Kick . | . . . . Crush . | . . . . Escape Stasis . | . . . . Rewire . | . . . . Trap . | . . . . Miscellaneous . | . . . . Route ------- -11/Scrapyard -10/Materials (discovered 3 exits: *Mat x2 / *Min) -10/Mines (discovered 3 exits: *Mat x2 / *Sub) -10/Subcaves (discovered 3 exits: *Mat / *Rec / [*Scr]) History --------- Turn | Location | Event 4 | -11/Scrapyard | Identified exit to Materials 4 | -11/Scrapyard | Discovered exit to Materials (range 16) 222 | -11/Scrapyard | Entered Materials 222 | -10/Materials | Evolved 1 slot: Propulsion x1 301 | -10/Materials | Identified exit to Materials 301 | -10/Materials | Discovered exit to Materials (range 16) 313 | -10/Materials | Build established: Hacker-Mutant 388 | -10/Materials | Discovered exit to Materials (range 11) 417 | -10/Materials | Identified exit to Mines 417 | -10/Materials | Discovered exit to Mines (range 7) 452 | -10/Materials | Entered Mines 462 | -10/Mines | Discovered exit to Materials (range 11) 490 | -10/Mines | Found a hidden stash of uninstalled traps 515 | -10/Mines | A weapon hastily lodged in a ceiling crevice suddenly fell to the ground 607 | -10/Mines | Discovered exit to Materials (range 10) 632 | -10/Mines | Assisted by bots powering up and referring to "LRC-V3" 647 | -10/Mines | Identified exit to Subcaves 781 | -10/Mines | Entered Subcaves 781 | -10/Subcaves | Accompanied by 5 allies 782 | -10/Subcaves | Approached by a straggling Scientist 787 | -10/Subcaves | Led the pair of lost Derelicts to an unsafe place 821 | -10/Subcaves | Shifting Twisted Machinery released Mak. Light Armor Plating 920 | -10/Subcaves | Learned Materials garrison access intel 955 | -10/Subcaves | Shifting Twisted Machinery released Battle Rifle 1000 | -10/Subcaves | Shifting Twisted Machinery released Sub. Shrapnel Launcher 1022 | -10/Subcaves | Lost 4 parts (2n2w) 1165 | -10/Subcaves | Identified exit to Recycling 1165 | -10/Subcaves | Discovered exit to Recycling (range 14) 1178 | -10/Subcaves | Core integrity fell below 50% 1181 | -10/Subcaves | Shifting Twisted Machinery released Scrap Shield 1329 | -10/Subcaves | Identified exit to Materials 1329 | -10/Subcaves | Discovered exit to Materials (range 12) 1342 | -10/Subcaves | Visited Clippyterm 1345 | -10/Subcaves | Learned Factory fabricator intel 1345 | -10/Subcaves | Learned Factory emergency access door positions 1471 | -10/Subcaves | Visited 4L-MR0's lab 1487 | -10/Subcaves | Found Arachnoskeleton 1489 | -10/Subcaves | Attached Arachnoskeleton, gained temporary slots: Propulsion x3 1945 | -10/Subcaves | Learned location of Zion (-6) 1945 | -10/Subcaves | Met a Zionite searching for "candidates" 1948 | -10/Subcaves | A swath of the cavern ceiling suddenly collapsed 1962 | -10/Subcaves | Learned location of 1 exit from Materials 2074 | -10/Subcaves | A swath of the cavern ceiling suddenly collapsed 2106 | -10/Subcaves | Core integrity fell below 20% 2353 | -10/Subcaves | Disturbed a concealed Subdweller 2960 | -10/Subcaves | Destroyed by DT-EGV(R) with Subdweller Machine Gun Last Messages --------------- 02511_ 0B-PXQ(u) builds Twisted Machinery. 02551_ 0B-PXQ(u) tweaks Twisted Machinery. 02567_ 0B-PXQ(u) builds Twisted Machinery. 02614_ Subatomizers dissect the Sub. Optics. 02641_ Acquired 5 matter. 02649_ Acquired 11 matter. 02653_ Subatomizers dissect the Sub. Optics. 02735_ ZB-KJ0(u) tweaks Twisted Machinery. 02757_ Acquired Sub. Power Source. 02769_ ZB-KJ0(u) tweaks Twisted Machinery. 02865_ G-34 Mercenary destroyed. 02865_ Switching to secondary target: Y-45 Defender. 02868_ Y-45 Defender destroyed. 02877_ Acquired 26 matter. 02878_ Acquired Imp. Ion Engine. 02880_ Acquired 10 matter. 02885_ Subatomizers dissect the Sml. Laser. 02947_ DT-EGV(R): "MADSUB!" Map ----- +----------------------------------------------------+ | # ### ##????????????#### ! ##### ## ##### | | ####?????????##### # ##### # ##### | | ####??#######????## ######## ### #### | | ##############???## ######## # # | | ####### ###??? ???#### | | #### ???### ## | | ## ######## #### #### | | ## #########" % % "#### ######## | | ## ############" " " "#### ######## | | ### ######## ###"""" """"### ##???### | | ### ##### ######>####### !== ##?????? | | ?## ## < ############### [ ###?????? | | ?## #### ##?########?##### ###?????? | | ?######### ###### ######## ###?#????? | | ?#####"""### # ###### ######## ##??????? | | ????##"" ## ### ### ##??????? | | ????##"X ## ##### ###??????? | | ????##"" ## ### ###?## ### ####?????? | | ?#??##"""## ##### ####### #### ###?????? | | ????######## ####### ######## ##### ##?????? | | #???##############?### ####### ##### [##?????? | | ??????????######???### ### #### #####??? | | ????????????????##### ;;# " ##??? | | ???????????????### R ! ##??? | | ??????????#??#### ??? | | ?????????????## @ #?# | | ??????????#??### ## ##### | | ?????#???????#### ## #### | | ??????????????###### | | ??????????########### "" * | | ?????????## #???### ## #"" | | ?????????# #????## ######## ## #### | | ?????????# #???## # ############ ###### | | ??????????# ##??### ## #?#?### #####?# | | ??????????# ##?## ###### ######?# | | ?????????## #### ## ## #### ## | | ?????????# ## ### ##### | | ?????????# ### #### ##?# | | ?????????# ###### ##### | | ?????????# ### #### | | ?????????# #?## #?## | | ?????????## ##### ### #??## | | ??????????# ##### ### # ## ##???# | | ??????????# ##### ## #### ###?####????# | | ??????????# #?##### #?# ###?????????### | | ??????????# #????## ##?# ##????####??? | | ??????????### ####?## ##??## #???## #### | | ####????????## ### #????#### ##??# # | | # ####?????## * ## #???????# ##??# | | ####### !% # ##???????# #??# | +----------------------------------------------------+ Best States ------------- Heat Dissipation 25 Energy Generation 15 Energy Capacity 265 Matter Stores 300 Matter Capacity 300 Sight Range 16 Terrain Scan Range 16 Terrain Scan Density 10 Additional Mass Support 6 Resistance: KI 35 Resistance: TH 35 Resistance: EX 35 Resistance: EM 35 Resistance: I 35 Resistance: S 35 Resistance: P 35 Evasion (%) 63 Targeting Accuracy 5 Offensive Hacking 20 Item Schematics ----------------- None Robot Schematics ------------------ None Fabricated ------------ Nothing Repaired ---------- Nothing Studied --------- None Alien Tech Used ----------------- None Achievements -------------- None Challenges ------------ None Game ------ Seed SpreadWeightCarapace Manual? 0 Play Time 00:25:53 Cumulative 199.0 hours Start 2025.12.15 @ 15:58:49 End 2025.12.15 @ 16:15:44 Sessions 1 Manual Loads 0 Difficulty Explorer Special Mode None Game No. 298 Rogue 0 Adventurer 0 Explorer 298 Win Type - Total 0 Types 0/0/0/0/0/0/0/0/0/0 Lore% 71 Gallery% 67 Achievement% 53 Wizard Run 0 Options --------- Layout 1 ASCII 0 Keyboard 0 Movement Mouse Keybinds 0 Fullscreen 1 Font 24/Smallcaps Map View 50x35 Zoom Use 0% Tactical HUD 1 Map Filters NONE Filters NONE Steam 1 RUN: 254f1b14-b208-4a06-8067-e2a2bfad1b5c